fUST/lending_fUST_20250609
["ID","MTS","AMOUNT","RATE_DAILY","PERIOD"]
[365073318,1749442241808,-1039.68,0.00022465,4]
[365073319,1749442241818,-1310.08,0.00022465,4]
[365073320,1749442241827,-440.0,0.00022465,4]
[365073321,1749442241836,-440.0,0.00022465,4]
[365073322,1749442241846,-219.63,0.00022473,2]
[365073323,1749442241855,-486.02343431,0.00022555,7]
[365073324,1749442241866,-627.80763091,0.00022576,2]
[365073325,1749442241877,-1004.42537304,0.00022577,2]
[365073326,1749442241887,-867.55954134,0.00022577,2]
[365073328,1749442241897,-1200.0,0.00022577,2]
[365073329,1749442241907,-1000.0,0.00022621,2]
[365073330,1749442241916,-1000.0,0.00022621,2]
[365073331,1749442241926,-592.40210575,0.00022621,2]
[365073332,1749442241935,-1009.49702705,0.00022621,2]
[365073333,1749442241945,-1000.0,0.00022621,2]
[365073334,1749442241955,-1000.0,0.00022621,2]
[365073335,1749442241966,-252.34158606,0.00022621,2]
[365073336,1749442241976,-1000.0,0.00022621,2]
[365073337,1749442241988,-486.02343431,0.00022693,7]
[365073338,1749442242032,-378.0,0.000227,14]
[365073339,1749442242042,-440.0,0.00022739,4]
[365073340,1749442242054,-888.53,0.00022739,4]
[365073341,1749442242064,-440.0,0.00022739,4]
[365073342,1749442242074,-440.0,0.00022739,4]
[365073343,1749442242083,-738.14,0.00022739,4]
[365073344,1749442242093,-885.97,0.00022739,4]
[365073345,1749442242104,-637.63,0.00022739,4]
[365073346,1749442242115,-1227.54,0.00022739,4]
[365073347,1749442242126,-906.16,0.00022739,4]
[365073348,1749442242136,-1039.68,0.00022739,4]
[365073349,1749442242146,-1310.08,0.00022739,4]
[365073350,1749442242156,-440.0,0.00022739,4]
[365073351,1749442242166,-440.0,0.00022739,4]
[365073352,1749442242175,-486.02343431,0.00022831,8]
[365073353,1749442242185,-504.82529594,0.00022896,2]
[365073354,1749442242195,-306.0,0.00022932,2]
[365073355,1749442242205,-153.0,0.00022932,2]
[365073356,1749442242215,-486.02343431,0.00022969,8]
[365073357,1749442242225,-385.12674616,0.00023013,4]
[365073358,1749442242236,-888.53,0.00023013,4]
[365073359,1749442242246,-440.0,0.00023013,4]
[365073360,1749442242256,-440.0,0.00023013,4]
[365073361,1749442242266,-738.14,0.00023013,4]
[365073363,1749442242276,-885.97,0.00023013,4]
[365073364,1749442242286,-637.63,0.00023013,4]
[365073365,1749442242296,-1227.54,0.00023013,4]
[365073366,1749442242306,-906.16,0.00023013,4]
[365073367,1749442242316,-1039.68,0.00023013,4]
[365073368,1749442242326,-1310.08,0.00023013,4]
[365073369,1749442242337,-440.0,0.00023013,4]
[365073370,1749442242347,-440.0,0.00023013,4]
[365073371,1749442242357,-217.0,0.00023014,7]
[365073372,1749442242366,-486.02343431,0.00023107,8]
[365073373,1749442242376,-1800.0,0.00023125,2]
[365073374,1749442242386,-1630.50859295,0.00023168,2]
[365073375,1749442242396,-1500.0,0.00023168,2]
[365073376,1749442242405,-1500.0,0.00023168,2]
[365073377,1749442242415,-1002.01390923,0.00023168,2]
[365073378,1749442242424,-1500.0,0.00023168,2]
[365073379,1749442242434,-627.80763091,0.00023202,2]
[365073380,1749442242444,-486.02343431,0.00023245,8]
[365073382,1749442242453,-36508.02339072,0.00023247,2]
[365073383,1749442242464,-888.53,0.00023287,4]
[365073384,1749442242473,-440.0,0.00023287,4]
[365073385,1749442242483,-440.0,0.00023287,4]
[365073386,1749442242494,-738.14,0.00023287,4]
[365073387,1749442242504,-885.97,0.00023287,4]
[365073388,1749442242514,-637.63,0.00023287,4]
[365073389,1749442242524,-1227.54,0.00023287,4]
[365073390,1749442242535,-906.16,0.00023287,4]
[365073391,1749442242545,-1039.68,0.00023287,4]
[365073392,1749442242554,-1310.08,0.00023287,4]
[365073393,1749442242564,-440.0,0.00023287,4]
[365073394,1749442242573,-440.0,0.00023287,4]
[365073395,1749442242583,-168.38556799,0.00023293,2]
[365073396,1749442242593,-5000.0,0.00023298,2]
[365073398,1749442242603,-151.31920398,0.00023298,2]
[365073399,1749442242613,-151.34355789,0.00023298,2]
[365073400,1749442242622,-207.4,0.00023298,2]
[365073401,1749442242632,-1688.0,0.00023298,2]
[365073402,1749442242642,-500.0,0.00023298,2]
[365073403,1749442242652,-500.0,0.00023298,2]
[365073404,1749442242662,-500.0,0.00023298,2]
[365073405,1749442242671,-500.0,0.00023298,2]
[365073406,1749442242681,-500.0,0.00023298,2]
[365073407,1749442242691,-500.0,0.00023298,2]
[365073409,1749442242702,-500.0,0.00023298,2]
[365073411,1749442242711,-500.0,0.00023298,2]
[365073413,1749442242721,-500.0,0.00023298,2]
[365073415,1749442242731,-1965.86189664,0.00023298,2]
[365073416,1749442242741,-500.0,0.00023298,2]
[365073417,1749442242750,-500.0,0.00023298,2]
[365073418,1749442242760,-500.0,0.00023298,2]
[365073419,1749442242769,-500.0,0.00023298,2]
[365073420,1749442242780,-647.41193469,0.00023298,2]
[365073421,1749442242790,-500.0,0.00023298,2]
[365073422,1749442242800,-500.0,0.00023298,2]
[365073423,1749442242809,-500.0,0.00023298,2]
[365073424,1749442242819,-500.0,0.00023298,2]
[365073425,1749442242829,-500.0,0.00023298,2]
[365073426,1749442242838,-500.0,0.00023298,2]
[365073427,1749442242848,-500.0,0.00023298,2]
[365073428,1749442242858,-500.0,0.00023298,2]
[365073429,1749442242868,-522.88,0.000233,7]
[365073430,1749442242878,-54835.48,0.000233,7]
[365073431,1749442242887,-515.99395455,0.00023316,5]
[365073432,1749442242898,-314.34854636,0.00023353,2]
[365073433,1749442242908,-486.02343431,0.00023383,9]
[365073434,1749442242918,-162.55636836,0.00023397,2]
[365073435,1749442242927,-162.55636836,0.00023397,2]
[365073436,1749442242937,-162.55636836,0.00023397,2]
[365073437,1749442242947,-397.96,0.000235,7]
[365073438,1749442242957,-177.44644,0.0002352,30]
[365073439,1749442242966,-486.02343431,0.00023521,9]
[365073440,1749442242976,-500.0,0.0002356,2]
[365073441,1749442242985,-500.0,0.0002356,2]
[365073442,1749442242995,-500.0,0.0002356,2]
[365073443,1749442243005,-500.0,0.0002356,2]
[365073445,1749442243014,-500.0,0.0002356,2]
[365073447,1749442243024,-500.0,0.0002356,2]
[365073449,1749442243033,-500.0,0.0002356,2]
[365073451,1749442243043,-502.23962641,0.0002356,2]
[365073452,1749442243055,-219278.47198,0.0002356,2]
[365073454,1749442243065,-888.53,0.00023561,4]
[365073455,1749442243075,-440.0,0.00023561,4]
[365073457,1749442243085,-440.0,0.00023561,4]
[365073459,1749442243095,-738.14,0.00023561,4]
[365073460,1749442243104,-885.97,0.00023561,4]
[365073462,1749442243114,-637.63,0.00023561,4]
[365073465,1749442243126,-1227.54,0.00023561,4]
[365073469,1749442243137,-906.16,0.00023561,4]
[365073471,1749442243146,-1039.68,0.00023561,4]
[365073472,1749442243156,-1310.08,0.00023561,4]
[365073473,1749442243166,-440.0,0.00023561,4]
[365073474,1749442243176,-440.0,0.00023561,4]
[365073475,1749442243186,-600.0,0.00023585,2]
[365073476,1749442243196,-486.02343431,0.00023659,9]
[365073477,1749442243207,-2400.0,0.00023673,2]
[365073478,1749442243218,-162.55636835,0.00023699,2]
[365073479,1749442243228,-162.55636836,0.00023699,2]
[365073480,1749442243239,-162.55636836,0.00023699,2]
[365073481,1749442243249,-162.55636836,0.00023699,2]
[365073482,1749442243259,-1508.12596909,0.00023716,2]
[365073483,1749442243269,-2000.0,0.00023716,2]
[365073484,1749442243279,-250.0,0.00023784,2]
[365073485,1749442243290,-486.02343431,0.00023797,9]
[365073486,1749442243300,-627.80763091,0.00023828,2]
[365073487,1749442243310,-600.0,0.00023831,2]
[365073488,1749442243320,-888.53,0.00023835,4]
[365073489,1749442243330,-440.0,0.00023835,4]
[365073490,1749442243340,-440.0,0.00023835,4]
[365073491,1749442243350,-738.14,0.00023835,4]
[365073492,1749442243361,-885.97,0.00023835,4]
[365073493,1749442243372,-637.63,0.00023835,4]
[365073494,1749442243385,-1227.54,0.00023835,4]
[365073495,1749442243396,-906.16,0.00023835,4]
[365073496,1749442243407,-1039.68,0.00023835,4]
[365073497,1749442243417,-1310.08,0.00023835,4]
[365073498,1749442243427,-440.0,0.00023835,4]
[365073499,1749442243438,-440.0,0.00023835,4]
[365073500,1749442243450,-5000.0,0.00023846,2]
[365073501,1749442243459,-150.0,0.000239,2]
[365073502,1749442243470,-5391.0,0.00023912,7]
[365073503,1749442243480,-486.02343431,0.00023934,10]
[365073504,1749442243491,-5391.0,0.00023941,7]
[365073505,1749442243501,-5391.0,0.0002397,7]
[365073506,1749442243511,-5391.0,0.00023999,7]
[365073507,1749442243521,-2300.0,0.00024,120]
[365073508,1749442243530,-834.7738823,0.00024,7]
[365073509,1749442243540,-162.55636836,0.00024027,2]
[365073510,1749442243552,-162.55636836,0.00024027,2]
[365073511,1749442243563,-5394.68256307,0.00024028,7]
[365073512,1749442243573,-12916.1454818,0.00024054,2]
[365073513,1749442243583,-200.50968493,0.00024056,2]
[365073514,1749442243595,-200.0,0.00024056,2]
[365073515,1749442243606,-109350.09912642,0.0002406,7]
[365073516,1749442243616,-486.02343431,0.00024072,10]
[365073517,1749442243628,-1681.083098,0.00024073,3]
[365073518,1749442243640,-600.0,0.00024077,2]
[365073519,1749442243650,-274.54,0.00024078,2]
[365073520,1749442243661,-213.08899333,0.000241,7]
[365073521,1749442243672,-888.53,0.00024109,4]
[365073522,1749442243683,-379.59910638,0.00024109,4]
[365073523,1749442243695,-440.0,0.00024109,4]
[365073524,1749442243705,-738.14,0.00024109,4]
[365073525,1749442243716,-885.97,0.00024109,4]
[365073526,1749442243727,-637.63,0.00024109,4]
[365073527,1749442243739,-1227.54,0.00024109,4]
[365073528,1749442243750,-906.16,0.00024109,4]
[365073529,1749442243761,-1039.68,0.00024109,4]
[365073530,1749442243771,-1310.08,0.00024109,4]
[365073531,1749442243781,-440.0,0.00024109,4]
[365073532,1749442243791,-440.0,0.00024109,4]
[365073533,1749442243800,-530.58,0.0002413,10]
[365073534,1749442243811,-3916.02,0.0002413,10]
[365073535,1749442243821,-486.02343431,0.0002421,10]
[365073536,1749442243831,-1956.34899859,0.00024221,2]
[365073537,1749442243842,-2500.0,0.00024264,2]
[365073538,1749442243852,-800.0,0.00024281,2]
[365073539,1749442243862,-970.993427,0.000243,2]
[365073540,1749442243872,-2200.0,0.00024312,2]
[365073541,1749442243882,-134669.98201738,0.00024321,3]
[365073542,1749442243892,-285.154581,0.00024321,7]
[365073543,1749442243903,-600.0,0.00024322,2]
[365073544,1749442243913,-800.0,0.00024331,2]
[365073545,1749442243923,-176.774,0.00024332,2]
[365073546,1749442243933,-2944.0,0.00024342,2]
[365073547,1749442243943,-964.121,0.00024343,2]
[365073548,1749442243953,-2160.0,0.00024343,2]
[365073549,1749442243964,-486.02343431,0.00024348,11]
[365073550,1749442243975,-800.0,0.0002436,2]
[365073551,1749442243986,-888.53,0.00024383,4]
[365073552,1749442243998,-440.0,0.00024383,4]
[365073553,1749442244007,-738.14,0.00024383,4]
[365073554,1749442244017,-885.97,0.00024383,4]
[365073555,1749442244029,-637.63,0.00024383,4]
[365073556,1749442244039,-1227.54,0.00024383,4]
[365073557,1749442244055,-906.16,0.00024383,4]
[365073558,1749442244066,-1039.68,0.00024383,4]
[365073559,1749442244076,-1310.08,0.00024383,4]
[365073560,1749442244087,-222.25618697,0.00024383,4]
[365073561,1749442244097,-189.46198489,0.00024383,4]
[365073562,1749442244108,-5000.0,0.00024394,2]
[365073563,1749442244118,-3000.0,0.000244,2]
[365073564,1749442244129,-11856.04170836,0.000244,3]
[365073565,1749442244142,-834.7738823,0.000244,3]
[365073566,1749442244152,-3000.0,0.0002441,2]
[365073567,1749442244163,-3000.0,0.0002442,2]
[365073568,1749442244174,-800.0,0.00024421,2]
[365073569,1749442244184,-800.0,0.00024424,2]
[365073570,1749442244194,-3000.0,0.0002443,2]
[365073571,1749442244205,-3000.0,0.0002444,2]
[365073572,1749442244215,-3000.0,0.0002445,2]
[365073573,1749442244227,-36508.02339072,0.00024454,2]
[365073574,1749442244237,-627.80763091,0.00024454,2]
[365073575,1749442244247,-168.38556799,0.00024454,2]
[365073576,1749442244257,-3000.0,0.0002446,2]
[365073577,1749442244267,-3000.0,0.0002447,2]
[365073578,1749442244278,-500.0,0.0002447,2]
[365073579,1749442244288,-500.0,0.0002447,2]
[365073580,1749442244297,-500.0,0.00024473,2]
[365073581,1749442244308,-3000.0,0.0002448,2]
[365073582,1749442244319,-486.02343431,0.00024486,11]
[365073583,1749442244330,-3000.0,0.0002449,2]
[365073584,1749442244340,-2000.0,0.000245,2]
[365073585,1749442244349,-3000.0,0.000245,2]
[365073586,1749442244359,-2626.34,0.000245,2]
[365073587,1749442244370,-55455.41,0.000245,2]
[365073588,1749442244382,-522.88,0.000245,7]
[365073589,1749442244392,-54835.48,0.000245,7]
[365073590,1749442244402,-153.10058331,0.00024505,3]
[365073591,1749442244412,-1744.0,0.00024505,3]
[365073592,1749442244422,-1744.0,0.00024505,3]
[365073593,1749442244432,-1744.0,0.00024505,3]
[365073594,1749442244443,-1744.0,0.00024505,3]
[365073595,1749442244454,-1744.0,0.00024505,3]
[365073596,1749442244465,-153.0,0.00024505,3]
[365073597,1749442244477,-1368.29753763,0.00024505,3]
[365073598,1749442244488,-153.0,0.00024505,3]
[365073599,1749442244498,-153.67475936,0.00024505,3]
[365073600,1749442244509,-3000.0,0.0002451,2]
[365073601,1749442244520,-3000.0,0.0002452,2]
[365073602,1749442244531,-3000.0,0.0002453,2]
[365073603,1749442244541,-3000.0,0.0002454,2]
[365073604,1749442244551,-306.0,0.00024548,2]
[365073605,1749442244561,-153.0,0.00024548,2]
[365073606,1749442244571,-153.0,0.00024548,2]
[365073607,1749442244581,-153.0,0.00024548,2]
[365073608,1749442244591,-153.0,0.00024548,2]
[365073609,1749442244601,-153.0,0.00024548,2]
[365073610,1749442244612,-153.0,0.00024548,2]
[365073611,1749442244622,-153.0,0.00024548,2]
[365073612,1749442244632,-153.0,0.00024548,2]
[365073613,1749442244642,-153.0,0.00024548,2]
[365073614,1749442244652,-153.0,0.00024548,2]
[365073615,1749442244663,-153.0,0.00024548,2]
[365073616,1749442244672,-153.0,0.00024548,2]
[365073617,1749442244683,-306.0,0.00024548,2]
[365073618,1749442244693,-412.8782008,0.00024548,2]
[365073619,1749442244703,-306.0,0.00024548,2]
[365073620,1749442244713,-306.0,0.00024548,2]
[365073621,1749442244723,-153.0,0.00024548,2]
[365073622,1749442244733,-153.0,0.00024548,2]
[365073623,1749442244743,-153.0,0.00024548,2]
[365073624,1749442244753,-153.0,0.00024548,2]
[365073625,1749442244763,-153.0,0.00024548,2]
[365073626,1749442244774,-176.7945792,0.00024548,2]
[365073627,1749442244784,-158.7201836,0.00024548,2]
[365073628,1749442244794,-306.0,0.00024548,2]
[365073629,1749442244803,-364.9269501,0.00024548,2]
[365073630,1749442244814,-573.244939,0.00024548,2]
[365073631,1749442244824,-153.0,0.00024548,2]
[365073632,1749442244834,-176.7945792,0.00024548,2]
[365073633,1749442244844,-364.9269501,0.00024548,2]
[365073634,1749442244854,-158.7201836,0.00024548,2]
[365073635,1749442244865,-153.0,0.00024548,2]
[365073636,1749442244875,-573.244939,0.00024548,2]
[365073637,1749442244886,-158.7201836,0.00024548,2]
[365073638,1749442244895,-364.9269501,0.00024548,2]
[365073639,1749442244905,-573.244939,0.00024548,2]
[365073640,1749442244915,-176.7945792,0.00024548,2]
[365073641,1749442244925,-364.9269501,0.00024548,2]
[365073642,1749442244935,-573.244939,0.00024548,2]
[365073643,1749442244945,-176.7945792,0.00024548,2]
[365073644,1749442244955,-573.244939,0.00024548,2]
[365073645,1749442244966,-176.7945792,0.00024548,2]
[365073646,1749442244977,-364.9269501,0.00024548,2]
[365073647,1749442245092,-375.0171255,0.00024548,2]
[365073648,1749442245103,-364.9269501,0.00024548,2]
[365073649,1749442245112,-376.1639127,0.00024548,2]
[365073650,1749442245123,-158.7201836,0.00024548,2]
[365073651,1749442245133,-364.9269501,0.00024548,2]
[365073652,1749442245142,-158.7201836,0.00024548,2]
[365073653,1749442245152,-364.9269501,0.00024548,2]
[365073654,1749442245162,-158.7201836,0.00024548,2]
[365073655,1749442245171,-158.7201836,0.00024548,2]
[365073656,1749442245181,-158.7201836,0.00024548,2]
[365073657,1749442245191,-300.7389976,0.00024548,2]
[365073658,1749442245200,-153.0,0.00024548,2]
[365073659,1749442245210,-179.4069173,0.00024548,2]
[365073660,1749442245219,-153.0,0.00024548,2]
[365073661,1749442245229,-153.0,0.00024548,2]
[365073662,1749442245238,-153.0,0.00024548,2]
[365073663,1749442245249,-153.0,0.00024548,2]
[365073664,1749442245259,-306.0,0.00024548,2]
[365073665,1749442245269,-3000.0,0.0002455,2]
[365073666,1749442245278,-1000.0,0.00024551,60]
[365073667,1749442245289,-22477.11893427,0.00024553,2]
[365073668,1749442245299,-20424.18748304,0.00024553,2]
[365073669,1749442245309,-263441.12841334,0.00024554,20]
[365073670,1749442245384,-2504.31,0.00024554,20]
[365073671,1749442245405,-3409.24941092,0.00024554,20]
[365073672,1749442245417,-541.29166109,0.00024554,20]
[365073673,1749442245429,-679.66133885,0.00024554,20]
[365073674,1749442245441,-472.82200155,0.00024554,20]
[365073675,1749442245453,-2749.95935579,0.00024554,20]
[365073676,1749442245464,-2496.4138988,0.00024554,20]
[365073677,1749442245552,-440.0,0.00019178,2]
[365073678,1749442245562,-440.0,0.00019452,2]
[365073679,1749442245573,-440.0,0.00019726,2]
[365073680,1749442245583,-440.0,0.0002,2]
[365073682,1749442245592,-440.0,0.00020273,2]
[365073683,1749442245602,-342.29536704,0.00021918,2]
[365073685,1749442246063,-440.0,0.00020547,2]
[365073686,1749442246073,-440.0,0.00020821,2]
[365073687,1749442246084,-440.0,0.00021095,2]
[365073688,1749442246095,-440.0,0.00021369,2]
[365073689,1749442246105,-440.0,0.00021643,2]
[365073690,1749442246114,-440.0,0.00021917,2]
[365073691,1749442246126,-157.70463296,0.00021918,2]
[365073692,1749442246136,-500.0,0.00021918,2]
[365073693,1749442246145,-500.0,0.00021918,2]
[365073694,1749442246155,-500.0,0.00021918,2]
[365073695,1749442246165,-500.0,0.00021918,2]
[365073696,1749442246175,-500.0,0.00021918,2]
[365073697,1749442246185,-382.45232803,0.00021918,2]
[365073698,1749442246194,-265.67386945,0.00022191,4]
[365073699,1749442246204,-200.0,0.00023561,2]
[365073700,1749442246215,-200.0,0.00023561,2]
[365073701,1749442246225,-200.0,0.00023561,2]
[365073702,1749442246235,-200.0,0.00023561,2]
[365073704,1749442246245,-200.0,0.00023561,2]
[365073706,1749442246254,-200.0,0.00023561,2]
[365073707,1749442246264,-200.0,0.00023561,2]
[365073708,1749442246274,-200.0,0.00023561,2]
[365073709,1749442246285,-200.0,0.00023561,2]
[365073710,1749442246294,-200.0,0.00023561,2]
[365073711,1749442246303,-200.0,0.00023561,2]
[365073712,1749442246313,-200.0,0.00023561,4]
[365073713,1749442246323,-262.38163176,0.00023561,4]
[365073714,1749442246332,-2200.0,0.00024548,2]
[365073715,1749442246342,-18678.21972406,0.00024554,20]
[365073716,1749442246357,-3854.46391945,0.00024554,20]
[365073717,1749442246368,-40718.74604226,0.00024554,20]
[365073718,1749442246665,-6299.30576824,0.00024554,20]
[365073719,1749442246680,-4415.46755456,0.00024554,20]
[365073720,1749442246691,-2324.77282451,0.00024554,20]
[365073721,1749442246703,-1216.68949048,0.00024554,20]
[365073722,1749442263182,150.0,0.00017775,2]
[365073723,1749442342463,150.0,0.0001755,2]
[365073725,1749442413557,67.6491414,0.00017574,2]
[365073726,1749442413582,82.3508586,0.00017574,2]
[365073727,1749442413715,158.716035,0.00013699,2]
[365073728,1749442483946,150.0,0.00017576,2]
[365073729,1749442561191,150.0,0.00017623,2]
[365073732,1749442638064,150.0,0.00017725,2]
[365073734,1749442713893,150.0,0.00017726,2]
[365073735,1749442788215,150.0,0.00017663,2]
[365073736,1749442865562,150.0,0.00017604,2]
[365073759,1749442941885,150.0,0.00017712,2]
[365073760,1749443017565,150.0,0.00017717,2]
[365073761,1749443091585,150.0,0.00017857,2]
[365073762,1749443168250,150.0,0.0001794,2]
[365073763,1749443245046,150.0,0.00017855,2]
[365073764,1749443318235,150.0,0.00017851,2]
[365073782,1749443392713,150.0,0.00017873,2]
[365073804,1749443432051,-202.0,0.00018781,2]
[365073806,1749443432061,-331.57194385,0.00018781,2]
[365073808,1749443432074,-6436.94271325,0.00018781,2]
[365073810,1749443432084,-150.0,0.000189,2]
[365073812,1749443432094,-1200.0,0.00019096,2]
[365073814,1749443432104,-300.0,0.00019097,2]
[365073817,1749443432115,-300.0,0.00019097,2]
[365073818,1749443432124,-300.0,0.00019097,2]
[365073821,1749443432134,-300.0,0.00019098,2]
[365073822,1749443432144,-4354.27492457,0.000191,2]
[365073825,1749443432153,-363.58,0.00019168,3]
[365073827,1749443432163,-503.25050875,0.00019173,2]
[365073829,1749443432173,-511.35442707,0.00019173,2]
[365073831,1749443432183,-526.54056509,0.00019173,2]
[365073833,1749443432192,-504.40342295,0.00019173,2]
[365073835,1749443432202,-263.59893537,0.00019173,2]
[365073837,1749443432211,-500.0,0.00019173,2]
[365073839,1749443432222,-454.74573656,0.00019178,2]
[365073841,1749443432231,-440.0,0.00019178,2]
[365073843,1749443432241,-430.0,0.00019178,2]
[365073845,1749443432251,-440.0,0.00019178,2]
[365073847,1749443432261,-440.0,0.00019178,2]
[365073849,1749443432271,-440.0,0.00019178,2]
[365073851,1749443432280,-440.0,0.00019178,2]
[365073853,1749443432290,-430.0,0.00019178,2]
[365073855,1749443432299,-430.0,0.00019178,2]
[365073857,1749443432309,-440.0,0.00019178,2]
[365073860,1749443432319,-430.0,0.00019178,2]
[365073862,1749443432328,-434.70715492,0.00019178,2]
[365073864,1749443432339,-430.0,0.00019178,2]
[365073866,1749443432348,-430.0,0.00019178,2]
[365073869,1749443432359,-459.73682816,0.00019178,2]
[365073871,1749443432369,-461.69333702,0.00019178,2]
[365073873,1749443432379,-430.0,0.00019178,2]
[365073875,1749443432389,-440.0,0.00019178,2]
[365073877,1749443432399,-440.0,0.00019178,2]
[365073879,1749443432408,-440.0,0.00019178,2]
[365073881,1749443432418,-432.71006021,0.00019178,2]
[365073883,1749443432428,-440.0,0.00019178,2]
[365073885,1749443432438,-440.0,0.00019178,2]
[365073887,1749443432449,-440.0,0.00019178,2]
[365073889,1749443432459,-278.15543846,0.00019178,2]
[365073891,1749443432468,-437.42308816,0.00019178,2]
[365073893,1749443432478,-408.29398825,0.00019178,2]
[365073895,1749443432487,-436.85961124,0.00019178,2]
[365073897,1749443432496,-440.0,0.00019178,2]
[365073899,1749443432506,-449.63948808,0.00019178,2]
[365073901,1749443432516,-431.79363285,0.00019178,2]
[365073903,1749443432525,-431.13348392,0.00019178,2]
[365073905,1749443432535,-457.91553057,0.00019178,2]
[365073907,1749443432545,-447.23589787,0.00019178,2]
[365073909,1749443432555,-442.72484457,0.00019178,2]
[365073911,1749443432564,-440.0,0.00019178,2]
[365073914,1749443432574,-440.0,0.00019178,2]
[365073916,1749443432584,-432.41560209,0.00019178,2]
[365073918,1749443432594,-436.24720046,0.00019178,2]
[365073920,1749443432605,-262.0986916,0.00019178,2]
[365073922,1749443432614,-440.0,0.00019178,2]
[365073924,1749443432624,-440.0,0.00019178,2]
[365073926,1749443432634,-494.92698807,0.00019178,2]
[365073928,1749443432644,-440.0,0.00019178,2]
[365073930,1749443432653,-347.79695946,0.00019178,2]
[365073932,1749443432667,-432.81513853,0.00019178,2]
[365073935,1749443432681,-191.14978704,0.00019178,2]
[365073938,1749443432701,-238.85021296,0.00019178,2]
[365073940,1749443432715,-440.0,0.00019178,2]
[365073942,1749443432728,-440.0,0.00019178,2]
[365073943,1749443432740,-440.0,0.00019178,2]
[365073944,1749443432750,-438.80370224,0.00019178,2]
[365073945,1749443432763,-440.0,0.00019178,2]
[365073946,1749443432777,-440.0,0.00019178,2]
[365073947,1749443432789,-234.59961805,0.00019178,2]
[365073948,1749443432801,-440.0,0.00019178,2]
[365073949,1749443432815,-440.0,0.00019178,2]
[365073950,1749443432827,-440.0,0.00019178,2]
[365073951,1749443432841,-430.0,0.00019178,2]
[365073952,1749443432855,-444.9063548,0.00019178,2]
[365073953,1749443432870,-440.0,0.00019178,2]
[365073954,1749443432884,-440.0,0.00019178,2]
[365073955,1749443432897,-440.0,0.00019178,2]
[365073956,1749443432913,-430.0,0.00019178,2]
[365073957,1749443432926,-468.90562683,0.00019178,2]
[365073958,1749443432945,-29.00027117,0.00019178,2]
[365073959,1749443432958,-430.0,0.00019178,2]
[365073960,1749443432971,-2.42222883,0.00019178,2]
[365073961,1749443432989,-434.94936149,0.00019178,2]
[365073962,1749443433001,-385.78601277,0.00019178,2]
[365073963,1749443433014,-430.0,0.00019178,2]
[365073964,1749443433027,-284.6842711,0.00019178,2]
[365073965,1749443433042,-145.3157289,0.00019178,2]
[365073966,1749443433054,-430.0,0.00019178,2]
[365073967,1749443433066,-504.36641913,0.00019178,2]
[365073968,1749443433078,-430.0,0.00019178,2]
[365073969,1749443433088,-296.63768542,0.00019178,2]
[365073970,1749443433101,-133.36231458,0.00019178,2]
[365073971,1749443433114,-430.0,0.00019178,2]
[365073972,1749443433125,-440.0,0.00019178,2]
[365073973,1749443433138,-452.54088076,0.00019178,2]
[365073974,1749443433150,-522.23225103,0.00019178,2]
[365073975,1749443433163,-487.16130312,0.00019178,2]
[365073976,1749443433176,-440.0,0.00019178,2]
[365073977,1749443433189,-409.64684622,0.00019178,2]
[365073978,1749443433200,-119.74427001,0.00019178,2]
[365073979,1749443433218,-310.25572999,0.00019178,2]